[Event "Titled Tuesday Blitz March 07 Late 2023"]
[White "Bitoon, Richard"]
[Black "Mostbauer, Maximilian"]
[WhiteFideId "5201110"]
[BlackFideId "1626680"]
[WhiteElo "2374"]
[BlackElo "2179"]
[Result "0-1"]
[Round "02"]
[TimeControl "180+2"]
[Date "2023.03.07"]
[WhiteClock "0:00:03"]
[BlackClock "0:00:20"]

1. e4 {[%clk 0:03:00]}  e6 {[%clk 0:02:59]} 2. d4 {[%clk 0:03:01]}  d5 {[%clk 0:02:59]} 3. Nd2 {[%clk 0:03:01]}  dxe4 {[%clk 0:03:00]} 4. Nxe4 {[%clk 0:03:01]}  Nd7 {[%clk 0:03:01]} 5. Bd3 {[%clk 0:03:02]}  Ngf6 {[%clk 0:03:02]} 6. Qe2 {[%clk 0:03:03]}  c5 {[%clk 0:03:02]} 7. Nxc5 {[%clk 0:03:02]}  Nxc5 {[%clk 0:03:03]} 8. dxc5 {[%clk 0:03:03]}  Bxc5 {[%clk 0:03:04]} 9. Nf3 {[%clk 0:03:04]}  O-O {[%clk 0:03:04]} 10. O-O {[%clk 0:03:04]}  b6 {[%clk 0:03:03]} 11. Bg5 {[%clk 0:03:04]}  Bb7 {[%clk 0:03:04]} 12. Rad1 {[%clk 0:03:04]}  Qc7 {[%clk 0:03:04]} 13. Bxf6 {[%clk 0:03:03]}  gxf6 {[%clk 0:03:05]} 14. Nh4 {[%clk 0:02:56]}  Qf4 {[%clk 0:03:04]} 15. Qh5 {[%clk 0:02:56]}  f5 {[%clk 0:03:05]} 16. Nxf5 {[%clk 0:02:42]}  exf5 {[%clk 0:02:58]} 17. Bxf5 {[%clk 0:02:43]}  h6 {[%clk 0:02:59]} 18. Rd3 {[%clk 0:02:43]}  Kh8 {[%clk 0:02:56]} 19. Rg3 {[%clk 0:02:41]}  Rad8 {[%clk 0:02:42]} 20. h3 {[%clk 0:02:18]}  Rd5 {[%clk 0:02:06]} 21. Rf3 {[%clk 0:01:46]}  Qg5 {[%clk 0:02:06]} 22. Qxg5 {[%clk 0:01:31]}  hxg5 {[%clk 0:02:07]} 23. Be4 {[%clk 0:01:31]}  Rd7 {[%clk 0:02:07]} 24. Bxb7 {[%clk 0:01:30]}  Rxb7 {[%clk 0:02:08]} 25. Rd1 {[%clk 0:01:28]}  f6 {[%clk 0:01:46]} 26. a3 {[%clk 0:01:28]}  a5 {[%clk 0:01:46]} 27. Rd5 {[%clk 0:01:28]}  Rff7 {[%clk 0:01:38]} 28. c3 {[%clk 0:01:28]}  a4 {[%clk 0:01:38]} 29. Rg3 {[%clk 0:01:26]}  Rbd7 {[%clk 0:01:34]} 30. Rf5 {[%clk 0:01:24]}  Rd2 {[%clk 0:01:19]} 31. Rg4 {[%clk 0:01:23]}  Rxb2 {[%clk 0:01:17]} 32. Rxa4 {[%clk 0:01:24]}  Kg7 {[%clk 0:01:17]} 33. Rf3 {[%clk 0:01:20]}  Rb3 {[%clk 0:01:15]} 34. h4 {[%clk 0:01:15]}  Rxa3 {[%clk 0:01:13]} 35. Rg4 {[%clk 0:01:15]}  Bd6 {[%clk 0:00:50]} 36. g3 {[%clk 0:01:13]}  Ra5 {[%clk 0:00:51]} 37. Rd4 {[%clk 0:01:09]}  Be5 {[%clk 0:00:49]} 38. Rb4 {[%clk 0:01:08]}  b5 {[%clk 0:00:47]} 39. Rg4 {[%clk 0:01:04]}  Kg6 {[%clk 0:00:42]} 40. Kg2 {[%clk 0:00:49]}  Raa7 {[%clk 0:00:42]} 41. Re3 {[%clk 0:00:46]}  Kf5 {[%clk 0:00:36]} 42. Rb4 {[%clk 0:00:46]}  gxh4 {[%clk 0:00:35]} 43. g4+ {[%clk 0:00:18]}  Kg6 {[%clk 0:00:31]} 44. Rxb5 {[%clk 0:00:16]}  Rfd7 {[%clk 0:00:29]} 45. Rb6 {[%clk 0:00:13]}  Kg5 {[%clk 0:00:27]} 46. Rb2 {[%clk 0:00:09]}  h3+ {[%clk 0:00:23]} 47. Kxh3 {[%clk 0:00:07]}  Rh7+ {[%clk 0:00:24]} 48. Kg2 {[%clk 0:00:07]}  Ra1 {[%clk 0:00:24]} 49. Rb4 {[%clk 0:00:06]}  Rh2+ {[%clk 0:00:19]} 50. Kf3 {[%clk 0:00:07]}  Ra2 {[%clk 0:00:20]} 51. Re2 {[%clk 0:00:04]}  Rxe2 {[%clk 0:00:21]} 52. Kxe2 {[%clk 0:00:05]}  Bxc3 {[%clk 0:00:21]} 53. Rc4 {[%clk 0:00:04]}  Be5 {[%clk 0:00:22]} 54. Ke3 {[%clk 0:00:04]}  Rh3+ {[%clk 0:00:22]} 55. f3 {[%clk 0:00:04]}  Kg6 {[%clk 0:00:22]} 56. Ra4 {[%clk 0:00:04]}  Rh1 {[%clk 0:00:22]} 57. Kf2 {[%clk 0:00:03]}  Rb1 {[%clk 0:00:21]} 58. Ke3 {[%clk 0:00:02]}  Rb3+ {[%clk 0:00:21]} 59. Ke4 {[%clk 0:00:03]}  Bd6 {[%clk 0:00:19]} 60. f4 {[%clk 0:00:01]}  Rb4+ {[%clk 0:00:18]} 61. Rxb4 {[%clk 0:00:02]}  Bxb4 {[%clk 0:00:19]} 62. g5 {[%clk 0:00:02]}  f5+ {[%clk 0:00:19]} 63. Kd5 {[%clk 0:00:02]}  Bd2 {[%clk 0:00:19]} 64. Ke5 {[%clk 0:00:03]}  Bc1 {[%clk 0:00:20]} 0-1


[Site "https://www.chess.com"]

[Event "Titled Tuesday Blitz March 07 Late 2023"]
[White "Grover, Sahaj"]
[Black "Brozyna, Mateusz"]
[WhiteFideId "5021103"]
[BlackFideId "21816140"]
[WhiteElo "2432"]
[BlackElo "2189"]
[Result "1-0"]
[Round "02"]
[TimeControl "180+2"]
[Date "2023.03.07"]
[WhiteClock "0:00:13"]
[BlackClock "0:00:01"]

1. e4 {[%clk 0:03:00]}  e5 {[%clk 0:02:59]} 2. Nf3 {[%clk 0:03:00]}  Nc6 {[%clk 0:03:00]} 3. Bb5 {[%clk 0:03:01]}  a6 {[%clk 0:03:00]} 4. Ba4 {[%clk 0:03:01]}  Nf6 {[%clk 0:03:01]} 5. d3 {[%clk 0:03:02]}  b5 {[%clk 0:03:01]} 6. Bb3 {[%clk 0:03:03]}  Be7 {[%clk 0:03:01]} 7. a4 {[%clk 0:03:02]}  Rb8 {[%clk 0:02:58]} 8. axb5 {[%clk 0:03:02]}  axb5 {[%clk 0:02:59]} 9. Nc3 {[%clk 0:03:03]}  d6 {[%clk 0:02:59]} 10. Nd5 {[%clk 0:03:01]}  Bg4 {[%clk 0:02:56]} 11. c3 {[%clk 0:02:59]}  O-O {[%clk 0:02:54]} 12. h3 {[%clk 0:02:55]}  Bh5 {[%clk 0:02:54]} 13. g4 {[%clk 0:02:40]}  Bg6 {[%clk 0:02:53]} 14. Nxe7+ {[%clk 0:02:38]}  Qxe7 {[%clk 0:02:53]} 15. Bg5 {[%clk 0:02:39]}  b4 {[%clk 0:02:48]} 16. h4 {[%clk 0:02:30]}  h6 {[%clk 0:02:34]} 17. h5 {[%clk 0:02:21]}  Bh7 {[%clk 0:02:18]} 18. Bd2 {[%clk 0:02:06]}  bxc3 {[%clk 0:02:15]} 19. bxc3 {[%clk 0:02:07]}  Nd7 {[%clk 0:01:43]} 20. g5 {[%clk 0:01:58]}  Nc5 {[%clk 0:01:34]} 21. Bc4 {[%clk 0:01:58]}  d5 {[%clk 0:01:23]} 22. Bxd5 {[%clk 0:01:43]}  Nxd3+ {[%clk 0:01:23]} 23. Ke2 {[%clk 0:01:43]}  Qc5 {[%clk 0:01:07]} 24. g6 {[%clk 0:01:16]}  Qxf2+ {[%clk 0:00:49]} 25. Kxd3 {[%clk 0:01:15]}  Rfd8 {[%clk 0:00:42]} 26. gxh7+ {[%clk 0:01:11]}  Kxh7 {[%clk 0:00:41]} 27. Be3 {[%clk 0:00:52]}  Qg2 {[%clk 0:00:13]} 28. Rg1 {[%clk 0:00:38]}  Rxd5+ {[%clk 0:00:12]} 29. exd5 {[%clk 0:00:38]}  e4+ {[%clk 0:00:12]} 30. Kxe4 {[%clk 0:00:34]}  Re8+ {[%clk 0:00:13]} 31. Kd3 {[%clk 0:00:35]}  Ne5+ {[%clk 0:00:07]} 32. Nxe5 {[%clk 0:00:34]}  Qxd5+ {[%clk 0:00:08]} 33. Bd4 {[%clk 0:00:33]}  Rxe5 {[%clk 0:00:07]} 34. Qc2 {[%clk 0:00:16]}  c5 {[%clk 0:00:05]} 35. Kd2+ {[%clk 0:00:15]}  f5 {[%clk 0:00:05]} 36. Ra7 {[%clk 0:00:13]}  Kh8 {[%clk 0:00:01]} 37. Raxg7 {[%clk 0:00:13]} 1-0


[Site "https://www.chess.com"]

[Event "Titled Tuesday Blitz March 07 Late 2023"]
[White "Barbosa, Evandro Amorim"]
[Black "Lacey, Patrick"]
[WhiteFideId "2115824"]
[BlackFideId "2032007"]
[WhiteElo "2439"]
[BlackElo "2436"]
[Result "1-0"]
[Round "02"]
[TimeControl "180+2"]
[Date "2023.03.07"]
[WhiteClock "0:00:37"]
[BlackClock "0:00:05"]

1. e4 {[%clk 0:03:00]}  c6 {[%clk 0:02:57]} 2. d4 {[%clk 0:03:00]}  d5 {[%clk 0:02:55]} 3. Nc3 {[%clk 0:03:01]}  dxe4 {[%clk 0:02:55]} 4. Nxe4 {[%clk 0:03:02]}  Nf6 {[%clk 0:02:54]} 5. Nxf6+ {[%clk 0:03:03]}  exf6 {[%clk 0:02:54]} 6. Be3 {[%clk 0:03:03]}  Bf5 {[%clk 0:02:51]} 7. Bd3 {[%clk 0:03:03]}  Bxd3 {[%clk 0:02:50]} 8. Qxd3 {[%clk 0:03:04]}  Bd6 {[%clk 0:02:48]} 9. Ne2 {[%clk 0:03:04]}  Qc7 {[%clk 0:02:46]} 10. h3 {[%clk 0:03:04]}  O-O {[%clk 0:02:44]} 11. O-O {[%clk 0:03:05]}  Re8 {[%clk 0:02:44]} 12. c4 {[%clk 0:03:05]}  Nd7 {[%clk 0:02:41]} 13. Nc3 {[%clk 0:03:05]}  Rad8 {[%clk 0:02:38]} 14. Rad1 {[%clk 0:03:06]}  Nf8 {[%clk 0:02:24]} 15. Qc2 {[%clk 0:03:06]}  Ng6 {[%clk 0:02:22]} 16. d5 {[%clk 0:03:04]}  Be5 {[%clk 0:02:09]} 17. dxc6 {[%clk 0:02:47]}  bxc6 {[%clk 0:02:10]} 18. Ne4 {[%clk 0:02:44]}  Qa5 {[%clk 0:01:56]} 19. b3 {[%clk 0:02:42]}  Rxd1 {[%clk 0:01:35]} 20. Rxd1 {[%clk 0:02:41]}  h6 {[%clk 0:01:30]} 21. g3 {[%clk 0:02:36]}  Qc7 {[%clk 0:01:25]} 22. Kg2 {[%clk 0:02:34]}  a5 {[%clk 0:01:20]} 23. Nc5 {[%clk 0:02:32]}  Bxg3 {[%clk 0:01:10]} 24. Rd7 {[%clk 0:02:33]}  Nh4+ {[%clk 0:01:06]} 25. Kf1 {[%clk 0:02:25]}  Qe5 {[%clk 0:01:04]} 26. Qd1 {[%clk 0:01:47]}  Bf4 {[%clk 0:00:58]} 27. Nd3 {[%clk 0:01:17]}  Qe4 {[%clk 0:00:46]} 28. Nxf4 {[%clk 0:01:16]}  Nf5 {[%clk 0:00:34]} 29. Qd3 {[%clk 0:01:01]}  Qh1+ {[%clk 0:00:26]} 30. Ke2 {[%clk 0:01:02]}  Nxe3 {[%clk 0:00:17]} 31. fxe3 {[%clk 0:01:02]}  Qh2+ {[%clk 0:00:17]} 32. Kd1 {[%clk 0:01:02]}  Qg1+ {[%clk 0:00:15]} 33. Kc2 {[%clk 0:01:02]}  Qf2+ {[%clk 0:00:15]} 34. Qd2 {[%clk 0:00:58]}  Qf3 {[%clk 0:00:14]} 35. Rd8 {[%clk 0:00:57]}  Rxd8 {[%clk 0:00:10]} 36. Qxd8+ {[%clk 0:00:56]}  Kh7 {[%clk 0:00:11]} 37. Qd3+ {[%clk 0:00:57]}  g6 {[%clk 0:00:11]} 38. h4 {[%clk 0:00:50]}  Kg7 {[%clk 0:00:11]} 39. a3 {[%clk 0:00:41]}  g5 {[%clk 0:00:10]} 40. hxg5 {[%clk 0:00:42]}  hxg5 {[%clk 0:00:08]} 41. Ne2 {[%clk 0:00:42]}  g4 {[%clk 0:00:08]} 42. Nd4 {[%clk 0:00:43]}  Qf2+ {[%clk 0:00:05]} 43. Qe2 {[%clk 0:00:43]}  Qxe2+ {[%clk 0:00:05]} 44. Nxe2 {[%clk 0:00:43]}  Kg6 {[%clk 0:00:05]} 45. b4 {[%clk 0:00:42]}  axb4 {[%clk 0:00:04]} 46. a4 {[%clk 0:00:37]}  Kf5 {[%clk 0:00:05]} 47. a5 {[%clk 0:00:37]} 1-0


[Site "https://www.chess.com"]

[Event "Titled Tuesday Blitz March 07 Late 2023"]
[White "Korchmar, Vasiliy"]
[Black "ArtemDyachuk"]
[WhiteFideId "24131750"]
[WhiteElo "2370"]
[BlackElo "2382"]
[Result "1-0"]
[Round "02"]
[TimeControl "180+2"]
[Date "2023.03.07"]
[WhiteClock "0:00:24"]
[BlackClock "0:00:01"]

1. e4 {[%clk 0:03:00]}  c5 {[%clk 0:02:48]} 2. Nf3 {[%clk 0:03:00]}  d6 {[%clk 0:02:46]} 3. d4 {[%clk 0:03:00]}  cxd4 {[%clk 0:02:47]} 4. Nxd4 {[%clk 0:03:01]}  Nf6 {[%clk 0:02:47]} 5. Nc3 {[%clk 0:03:01]}  a6 {[%clk 0:02:48]} 6. Be2 {[%clk 0:03:00]}  e5 {[%clk 0:02:47]} 7. Nb3 {[%clk 0:03:00]}  Nc6 {[%clk 0:02:47]} 8. O-O {[%clk 0:02:59]}  Be6 {[%clk 0:02:47]} 9. Be3 {[%clk 0:02:55]}  Be7 {[%clk 0:02:47]} 10. Nd5 {[%clk 0:02:55]}  O-O {[%clk 0:02:33]} 11. f3 {[%clk 0:02:30]}  Bxd5 {[%clk 0:02:17]} 12. exd5 {[%clk 0:02:29]}  Nb8 {[%clk 0:02:17]} 13. a4 {[%clk 0:02:27]}  Nh5 {[%clk 0:02:17]} 14. Qd2 {[%clk 0:02:26]}  Nd7 {[%clk 0:02:11]} 15. Na5 {[%clk 0:01:56]}  Qc7 {[%clk 0:02:07]} 16. c4 {[%clk 0:01:53]}  f5 {[%clk 0:01:59]} 17. b4 {[%clk 0:01:51]}  b6 {[%clk 0:01:40]} 18. Nc6 {[%clk 0:01:50]}  Bf6 {[%clk 0:01:39]} 19. a5 {[%clk 0:01:49]}  bxa5 {[%clk 0:01:38]} 20. Rxa5 {[%clk 0:01:49]}  f4 {[%clk 0:01:28]} 21. Bf2 {[%clk 0:01:48]}  g5 {[%clk 0:01:26]} 22. Bd3 {[%clk 0:01:45]}  Bg7 {[%clk 0:01:20]} 23. Qc2 {[%clk 0:01:27]}  Ndf6 {[%clk 0:01:17]} 24. Bf5 {[%clk 0:01:18]}  Rae8 {[%clk 0:01:16]} 25. Rxa6 {[%clk 0:01:15]}  Ra8 {[%clk 0:01:03]} 26. Rfa1 {[%clk 0:01:14]}  Qb7 {[%clk 0:00:13]} 27. Ra7 {[%clk 0:01:11]}  e4 {[%clk 0:00:11]} 28. R1a5 {[%clk 0:00:55]}  Rxa7 {[%clk 0:00:07]} 29. Rxa7 {[%clk 0:00:55]}  Ra8 {[%clk 0:00:06]} 30. Rxb7 {[%clk 0:00:34]}  Ra1+ {[%clk 0:00:05]} 31. Be1 {[%clk 0:00:34]}  Rxe1+ {[%clk 0:00:02]} 32. Kf2 {[%clk 0:00:34]}  Ra1 {[%clk 0:00:02]} 33. Be6+ {[%clk 0:00:34]}  Kf8 {[%clk 0:00:01]} 34. Rf7+ {[%clk 0:00:33]}  Ke8 {[%clk 0:00:01]} 35. Re7+ {[%clk 0:00:24]} 1-0


[Site "https://www.chess.com"]

[Event "Titled Tuesday Blitz March 07 Late 2023"]
[White "Yano, William Jorge Froes"]
[Black "Cardoso Cardoso, Jose Gabriel"]
[WhiteFideId "2112949"]
[BlackFideId "4430492"]
[WhiteElo "2122"]
[BlackElo "2496"]
[Result "0-1"]
[Round "02"]
[TimeControl "180+2"]
[Date "2023.03.07"]
[WhiteClock "0:00:15"]
[BlackClock "0:00:07"]

1. e4 {[%clk 0:03:00]}  c5 {[%clk 0:02:57]} 2. Nf3 {[%clk 0:03:01]}  Nc6 {[%clk 0:02:55]} 3. Bb5 {[%clk 0:03:00]}  e6 {[%clk 0:02:46]} 4. O-O {[%clk 0:02:59]}  Nge7 {[%clk 0:02:46]} 5. c3 {[%clk 0:02:58]}  d5 {[%clk 0:02:32]} 6. e5 {[%clk 0:02:57]}  a6 {[%clk 0:02:20]} 7. Ba4 {[%clk 0:02:57]}  c4 {[%clk 0:02:17]} 8. d3 {[%clk 0:02:51]}  cxd3 {[%clk 0:02:09]} 9. Qxd3 {[%clk 0:02:50]}  Ng6 {[%clk 0:02:08]} 10. Re1 {[%clk 0:02:49]}  Be7 {[%clk 0:02:03]} 11. Bc2 {[%clk 0:02:25]}  Qc7 {[%clk 0:01:49]} 12. Qe2 {[%clk 0:02:05]}  Bd7 {[%clk 0:01:42]} 13. g3 {[%clk 0:01:44]}  Bc5 {[%clk 0:01:33]} 14. Kg2 {[%clk 0:01:25]}  Rc8 {[%clk 0:01:29]} 15. Nbd2 {[%clk 0:01:22]}  Ba7 {[%clk 0:01:28]} 16. Nb3 {[%clk 0:01:20]}  Na5 {[%clk 0:01:26]} 17. Be3 {[%clk 0:01:16]}  Bb5 {[%clk 0:01:17]} 18. Qd2 {[%clk 0:01:08]}  Nc4 {[%clk 0:01:15]} 19. Qc1 {[%clk 0:01:06]}  Nxe3+ {[%clk 0:01:15]} 20. Rxe3 {[%clk 0:01:05]}  Bxe3 {[%clk 0:01:14]} 21. Qxe3 {[%clk 0:01:06]}  Ba4 {[%clk 0:00:59]} 22. h4 {[%clk 0:01:01]}  Ne7 {[%clk 0:00:55]} 23. Qg5 {[%clk 0:00:50]}  Kf8 {[%clk 0:00:55]} 24. h5 {[%clk 0:00:49]}  h6 {[%clk 0:00:54]} 25. Qf4 {[%clk 0:00:41]}  Bxb3 {[%clk 0:00:49]} 26. axb3 {[%clk 0:00:41]}  Nc6 {[%clk 0:00:42]} 27. Re1 {[%clk 0:00:25]}  Qe7 {[%clk 0:00:42]} 28. Nh4 {[%clk 0:00:24]}  Ke8 {[%clk 0:00:41]} 29. Qa4 {[%clk 0:00:23]}  Kd8 {[%clk 0:00:38]} 30. Bd3 {[%clk 0:00:23]}  Kc7 {[%clk 0:00:37]} 31. Ra1 {[%clk 0:00:22]}  Nxe5 {[%clk 0:00:34]} 32. Qa5+ {[%clk 0:00:22]}  Kb8 {[%clk 0:00:32]} 33. Bxa6 {[%clk 0:00:23]}  bxa6 {[%clk 0:00:31]} 34. Qxa6 {[%clk 0:00:23]}  Nc6 {[%clk 0:00:31]} 35. Nf3 {[%clk 0:00:18]}  Qb7 {[%clk 0:00:30]} 36. Qe2 {[%clk 0:00:18]}  Kc7 {[%clk 0:00:28]} 37. b4 {[%clk 0:00:18]}  Rb8 {[%clk 0:00:25]} 38. Ra5 {[%clk 0:00:17]}  Nxa5 {[%clk 0:00:23]} 39. bxa5 {[%clk 0:00:18]}  Kd7 {[%clk 0:00:16]} 40. b4 {[%clk 0:00:19]}  Ke7 {[%clk 0:00:15]} 41. Qd3 {[%clk 0:00:18]}  Qc7 {[%clk 0:00:12]} 42. Qd4 {[%clk 0:00:17]}  f6 {[%clk 0:00:11]} 43. Nh4 {[%clk 0:00:16]}  Rhc8 {[%clk 0:00:11]} 44. Ng6+ {[%clk 0:00:16]}  Kf7 {[%clk 0:00:12]} 45. a6 {[%clk 0:00:16]}  Qxc3 {[%clk 0:00:12]} 46. Qa7+ {[%clk 0:00:15]}  Qc7 {[%clk 0:00:12]} 47. Qe3 {[%clk 0:00:14]}  Qb6 {[%clk 0:00:11]} 48. Qf4 {[%clk 0:00:14]}  Qxa6 {[%clk 0:00:11]} 49. Ne5+ {[%clk 0:00:14]}  Kg8 {[%clk 0:00:11]} 50. Nd7 {[%clk 0:00:14]}  Qb7 {[%clk 0:00:08]} 51. Nxf6+ {[%clk 0:00:15]}  gxf6 {[%clk 0:00:08]} 52. Qg4+ {[%clk 0:00:16]}  Kf7 {[%clk 0:00:07]} 53. Qg6+ {[%clk 0:00:16]}  Ke7 {[%clk 0:00:08]} 54. Qg7+ {[%clk 0:00:16]}  Kd6 {[%clk 0:00:08]} 55. Qxf6 {[%clk 0:00:17]}  Qxb4 {[%clk 0:00:08]} 56. Qxh6 {[%clk 0:00:17]}  Qe4+ {[%clk 0:00:08]} 57. Kh2 {[%clk 0:00:17]}  Rb1 {[%clk 0:00:08]} 58. Qf4+ {[%clk 0:00:14]}  Qxf4 {[%clk 0:00:08]} 59. gxf4 {[%clk 0:00:15]}  Rg8 {[%clk 0:00:07]} 0-1


[Site "https://www.chess.com"]

[Event "Titled Tuesday Blitz March 07 Late 2023"]
[White "Goltsev, Dmitry"]
[Black "Goldgewicht, Lionel"]
[WhiteFideId "24176710"]
[BlackFideId "604313"]
[WhiteElo "2336"]
[BlackElo "2367"]
[Result "1-0"]
[Round "02"]
[TimeControl "180+2"]
[Date "2023.03.07"]
[WhiteClock "0:01:50"]
[BlackClock "0:00:10"]

1. e4 {[%clk 0:02:57]}  c5 {[%clk 0:02:59]} 2. Nf3 {[%clk 0:02:57]}  d6 {[%clk 0:02:59]} 3. d4 {[%clk 0:02:57]}  cxd4 {[%clk 0:02:59]} 4. Nxd4 {[%clk 0:02:58]}  Nf6 {[%clk 0:02:59]} 5. Nc3 {[%clk 0:02:59]}  a6 {[%clk 0:02:59]} 6. Be2 {[%clk 0:02:59]}  e5 {[%clk 0:02:59]} 7. Nb3 {[%clk 0:02:56]}  Be7 {[%clk 0:02:59]} 8. O-O {[%clk 0:02:56]}  Be6 {[%clk 0:02:57]} 9. Be3 {[%clk 0:02:56]}  Nbd7 {[%clk 0:02:55]} 10. Nd5 {[%clk 0:02:56]}  Bxd5 {[%clk 0:02:50]} 11. exd5 {[%clk 0:02:56]}  b5 {[%clk 0:02:44]} 12. a4 {[%clk 0:02:54]}  b4 {[%clk 0:02:40]} 13. c4 {[%clk 0:02:52]}  bxc3 {[%clk 0:02:39]} 14. bxc3 {[%clk 0:02:53]}  O-O {[%clk 0:02:38]} 15. c4 {[%clk 0:02:52]}  Qc7 {[%clk 0:02:31]} 16. f3 {[%clk 0:02:49]}  Rfc8 {[%clk 0:02:30]} 17. Qd2 {[%clk 0:02:48]}  a5 {[%clk 0:02:10]} 18. Rfd1 {[%clk 0:02:39]}  Ne8 {[%clk 0:02:07]} 19. Rac1 {[%clk 0:02:35]}  Nc5 {[%clk 0:02:07]} 20. Nxc5 {[%clk 0:02:31]}  dxc5 {[%clk 0:02:08]} 21. Rb1 {[%clk 0:02:31]}  Nd6 {[%clk 0:02:06]} 22. Bd3 {[%clk 0:02:30]}  f5 {[%clk 0:02:00]} 23. Rb2 {[%clk 0:02:26]}  Rcb8 {[%clk 0:02:00]} 24. Rdb1 {[%clk 0:02:26]}  Rb4 {[%clk 0:02:00]} 25. Qc2 {[%clk 0:02:25]}  e4 {[%clk 0:01:45]} 26. fxe4 {[%clk 0:02:20]}  fxe4 {[%clk 0:01:46]} 27. Bxe4 {[%clk 0:02:21]}  Nxc4 {[%clk 0:01:33]} 28. Rxb4 {[%clk 0:02:17]}  Nxe3 {[%clk 0:01:31]} 29. Qb3 {[%clk 0:02:05]}  c4 {[%clk 0:01:18]} 30. Rb8+ {[%clk 0:01:59]}  Bf8 {[%clk 0:00:55]} 31. Qb6 {[%clk 0:01:52]}  Qxb8 {[%clk 0:00:12]} 32. Qxb8 {[%clk 0:01:52]}  Rxb8 {[%clk 0:00:13]} 33. Rxb8 {[%clk 0:01:52]}  Kf7 {[%clk 0:00:14]} 34. Rc8 {[%clk 0:01:51]}  Kf6 {[%clk 0:00:11]} 35. Rxf8+ {[%clk 0:01:50]}  Ke5 {[%clk 0:00:10]} 36. Re8+ {[%clk 0:01:50]}  Kd4 {[%clk 0:00:10]} 37. d6 {[%clk 0:01:50]} 1-0


[Site "https://www.chess.com"]

[Event "Titled Tuesday Blitz March 07 Late 2023"]
[White "Matinian, Nikita"]
[Black "Coelho, Ramyres Santana"]
[WhiteFideId "24129100"]
[BlackFideId "2120690"]
[WhiteElo "2422"]
[BlackElo "1888"]
[Result "1-0"]
[Round "02"]
[TimeControl "180+2"]
[Date "2023.03.07"]
[WhiteClock "0:01:45"]
[BlackClock "0:00:44"]

1. e4 {[%clk 0:03:00]}  c5 {[%clk 0:01:53]} 2. Nf3 {[%clk 0:02:59]}  d6 {[%clk 0:01:47]} 3. d4 {[%clk 0:02:58]}  cxd4 {[%clk 0:01:47]} 4. Nxd4 {[%clk 0:02:59]}  Nf6 {[%clk 0:01:47]} 5. Nc3 {[%clk 0:02:59]}  a6 {[%clk 0:01:45]} 6. Bg5 {[%clk 0:03:00]}  e6 {[%clk 0:01:45]} 7. Qf3 {[%clk 0:02:59]}  Be7 {[%clk 0:01:44]} 8. O-O-O {[%clk 0:02:58]}  O-O {[%clk 0:01:43]} 9. h4 {[%clk 0:02:58]}  b5 {[%clk 0:01:43]} 10. e5 {[%clk 0:02:58]}  Nd5 {[%clk 0:01:37]} 11. Nxd5 {[%clk 0:02:52]}  exd5 {[%clk 0:01:33]} 12. Qxd5 {[%clk 0:02:51]}  Bxg5+ {[%clk 0:01:32]} 13. hxg5 {[%clk 0:02:51]}  Qxg5+ {[%clk 0:01:33]} 14. Kb1 {[%clk 0:02:50]}  Ra7 {[%clk 0:01:29]} 15. Bd3 {[%clk 0:02:46]}  h6 {[%clk 0:01:28]} 16. Qxd6 {[%clk 0:02:42]}  Nd7 {[%clk 0:01:20]} 17. Nc6 {[%clk 0:02:41]}  Rb7 {[%clk 0:01:16]} 18. Ne7+ {[%clk 0:02:41]}  Kh8 {[%clk 0:01:12]} 19. e6 {[%clk 0:02:35]}  fxe6 {[%clk 0:01:07]} 20. Ng6+ {[%clk 0:02:33]}  Kg8 {[%clk 0:01:05]} 21. Qxe6+ {[%clk 0:02:27]}  Rf7 {[%clk 0:01:02]} 22. Qe8+ {[%clk 0:02:14]}  Nf8 {[%clk 0:01:00]} 23. Qxc8 {[%clk 0:02:06]}  Rb6 {[%clk 0:00:57]} 24. Nxf8 {[%clk 0:02:02]}  Rxf8 {[%clk 0:00:58]} 25. Bh7+ {[%clk 0:02:00]}  Kxh7 {[%clk 0:00:54]} 26. Qxf8 {[%clk 0:02:00]}  Rf6 {[%clk 0:00:54]} 27. Qd8 {[%clk 0:01:57]}  Qxg2 {[%clk 0:00:52]} 28. Qd3+ {[%clk 0:01:50]}  Rg6 {[%clk 0:00:50]} 29. Rhg1 {[%clk 0:01:45]}  Qc6 {[%clk 0:00:50]} 30. Rxg6 {[%clk 0:01:44]}  Qxg6 {[%clk 0:00:51]} 31. Qxg6+ {[%clk 0:01:44]}  Kxg6 {[%clk 0:00:52]} 32. Rg1+ {[%clk 0:01:43]}  Kf6 {[%clk 0:00:51]} 33. Kc1 {[%clk 0:01:42]}  g5 {[%clk 0:00:52]} 34. Kd2 {[%clk 0:01:43]}  h5 {[%clk 0:00:52]} 35. Ke3 {[%clk 0:01:44]}  Kf5 {[%clk 0:00:52]} 36. Rd1 {[%clk 0:01:44]}  h4 {[%clk 0:00:51]} 37. Rd6 {[%clk 0:01:43]}  g4 {[%clk 0:00:50]} 38. Rxa6 {[%clk 0:01:42]}  Kg5 {[%clk 0:00:48]} 39. Ra5 {[%clk 0:01:42]}  h3 {[%clk 0:00:48]} 40. Rxb5+ {[%clk 0:01:42]}  Kh4 {[%clk 0:00:48]} 41. Rb8 {[%clk 0:01:43]}  g3 {[%clk 0:00:45]} 42. Rh8+ {[%clk 0:01:44]}  Kg4 {[%clk 0:00:45]} 43. f3+ {[%clk 0:01:44]}  Kg5 {[%clk 0:00:44]} 44. Rxh3 {[%clk 0:01:44]}  g2 {[%clk 0:00:44]} 45. Rg3+ {[%clk 0:01:45]} 1-0


[Site "https://www.chess.com"]